bitfinex-derivatives/quotes_ETHF0:USTF0_20250102
["timestamp","ask_amount","ask_price","bid_price","bid_amount"]
[1735849808286,3.2078,3469.4,3469.2,0.4295]
[1735849808480,0.2885,3469.3,3469.2,0.4295]
[1735849812288,41.0885,3469.3,3469.2,0.4295]
[1735849813091,0.28851,3469.2,3469.1,0.4611]
[1735849813494,0.28851,3469.2,3469.1,0.9215]
[1735849814194,43.52577137,3469.3,3469.0,0.4542]
[1735849814490,0.28856,3468.6,3468.5,0.9149]
[1735849814886,2.26987137,3468.8,3468.3,4.51246844]
[1735849815090,0.28858,3468.4,3468.3,4.51246844]
[1735849815293,0.28859,3468.3,3468.2,3.2078]
[1735849815688,41.08859,3468.3,3468.2,3.2078]
[1735849816903,41.08859,3468.3,3468.1,1.3749]
[1735849816904,0.2886,3468.2,3468.1,1.3749]
[1735849817707,0.2886,3468.2,3468.1,0.9255]
[1735849817909,2.55847137,3468.2,3468.1,0.9255]
[1735849818105,2.55847137,3468.2,3467.6,1.3364]
[1735849818106,0.28864,3467.7,3467.6,1.3364]
[1735849818707,41.08864,3467.7,3467.6,1.3364]
[1735849819011,41.08864,3467.7,3467.6,1.62505]
[1735849819205,41.1133145,3467.7,3467.6,1.62505]
[1735849819908,41.1133145,3467.7,3467.6,1.3364]
[1735849820706,44.3211145,3467.7,3467.6,0.8763]
[1735849824505,44.3211145,3467.7,3467.1,0.46]
[1735849824506,0.28868,3467.2,3467.1,0.46]
[1735849825207,0.3133545,3467.2,3467.1,0.46]
[1735849827012,0.3133545,3467.2,3467.1,0.74869]
[1735849827308,0.3133545,3467.2,3467.1,0.46]
[1735849829715,0.0246745,3467.2,3467.1,0.46]
[1735849829916,0.3133545,3467.2,3467.1,0.74869]
[1735849830413,0.3133545,3467.2,3467.1,0.46]
[1735849832408,0.28869,3467.1,3467.0,0.4338]
[1735849832710,0.28869,3467.1,3466.6,3.2078]
[1735849832711,0.28871,3466.8,3466.7,0.8962]
[1735849833220,0.3133845,3466.8,3466.7,0.8962]
[1735849833513,41.1133845,3466.8,3466.7,0.8962]
[1735849836112,40.8246745,3466.8,3466.3,0.4653]
[1735849836306,0.28875,3466.4,3466.3,1.3653]
[1735849837213,0.28879,3465.9,3465.8,3.2078]
[1735849837419,0.3134645,3465.9,3465.8,3.6633]
[1735849837612,41.1134645,3465.9,3465.8,3.6633]
[1735849839216,41.1134645,3465.9,3465.8,0.4555]
[1735849844710,40.8246745,3465.9,3465.8,0.7443]
[1735849844916,0.0246745,3465.9,3465.8,3.9521]
[1735849845119,0.28871,3466.9,3466.8,0.28871]
[1735849845617,0.28871,3466.8,3466.7,3.49652]
[1735849846123,41.08871,3466.8,3466.7,3.49652]
[1735849847018,41.08871,3466.8,3466.7,3.2078]
[1735849848625,0.28873,3466.6,3466.5,0.75124]
[1735849849224,0.28873,3466.6,3466.5,3.95904]
[1735849849527,0.28873,3466.6,3466.5,3.6703]
[1735849850220,0.28873,3466.6,3466.5,3.2078]
[1735849850727,0.28876,3466.2,3466.1,3.49656]
[1735849851216,0.28875,3466.5,3466.4,0.28874]
[1735849852920,40.8,3466.6,3466.3,0.4523]
[1735849853124,0.28875,3466.4,3466.3,0.4523]
[1735849853429,0.28875,3466.4,3465.5,7.16142771]
[1735849853430,2.26987137,3466.4,3465.5,7.16142771]
[1735849853626,0.2888,3465.7,3465.6,5.81986844]
[1735849853819,41.0888,3465.7,3465.6,5.81986844]
[1735849854725,41.0888,3465.7,3465.6,1.3074]
[1735849862730,0.28879,3465.9,3465.8,0.28878]
[1735849863124,40.8,3465.9,3465.8,0.28878]
[1735849863623,41.08879,3465.9,3465.8,0.28878]
[1735849863819,40.8,3465.9,3465.8,0.28878]
[1735849864021,40.8,3465.9,3465.8,5.76645137]
[1735849864632,0.28873,3466.7,3466.6,0.28872]
[1735849864823,3.2078,3467.0,3466.3,5.47767137]
[1735849865025,0.28874,3466.6,3466.5,0.28873]
[1735849865228,0.28874,3466.6,3466.4,0.9119]
[1735849865229,40.8,3466.6,3466.4,0.9119]
[1735849865527,40.8,3466.6,3466.5,0.28874]
[1735849865719,40.8,3466.6,3466.5,5.28874]
[1735849866521,3.2078,3467.4,3467.3,0.28867]
[1735849866827,0.28865,3467.6,3467.5,0.28865]
[1735849867327,0.28865,3467.5,3467.4,0.28866]
[1735849867634,40.8,3467.5,3467.4,0.28866]
[1735849868433,41.08865,3467.5,3467.4,0.28866]
[1735849868629,40.8,3467.5,3467.4,0.28866]
[1735849871635,40.8,3467.5,3467.4,4.80899434]
[1735849874441,40.8,3467.5,3467.4,0.28866]
[1735849876042,40.8,3467.5,3467.4,4.80899434]
[1735849876243,40.8,3467.5,3467.4,4.52033434]
[1735849876642,40.8,3467.5,3467.4,4.80899434]
[1735849877344,41.08865,3467.5,3467.4,4.52033434]
[1735849877643,41.08865,3467.5,3467.3,1.19416]
[1735849878047,40.8,3467.5,3467.3,0.9055]
[1735849878239,40.8,3467.5,3467.4,0.28866]
[1735849880647,40.8,3467.5,3467.4,0.74806]
[1735849883441,40.8,3467.5,3467.4,1.90206]
[1735849885541,0.4224,3468.4,3467.7,0.72158]
[1735849885542,0.28859,3468.3,3467.7,0.72158]
[1735849885743,0.4224,3468.4,3467.9,3.2078]
[1735849885942,0.28859,3468.3,3468.2,0.28859]
[1735849886649,0.2886,3468.2,3468.1,0.28859]
[1735849887446,40.8,3468.3,3468.2,0.28859]
[1735849889380,40.8,3468.3,3468.2,1.44259]
[1735849889554,0.28854,3468.9,3468.8,0.28854]
[1735849889853,0.4266,3469.2,3468.5,5.47767137]
[1735849890055,3.49633,3469.0,3468.9,0.28854]
[1735849890553,41.08853,3469.0,3468.9,0.28854]
[1735849891552,40.8,3469.0,3468.9,0.28854]
[1735849892457,40.8,3469.0,3468.9,4.65034]
[1735849894747,0.9065,3469.7,3468.9,4.65034]
[1735849894954,0.9065,3469.7,3469.6,0.28848]
[1735849895362,41.7065,3469.7,3469.6,0.28848]
[1735849895956,41.2592,3469.7,3469.6,0.28848]
[1735849896956,40.8,3469.7,3469.6,0.28848]
[1735849897851,41.08847,3469.7,3469.6,1.154]
[1735849898047,40.8,3469.7,3469.6,1.44248]
[1735849898658,40.8,3469.7,3469.6,1.154]
[1735849898858,40.8,3469.7,3469.6,1.44248]
[1735849903856,40.8,3469.7,3469.6,3.71235137]
[1735849904353,0.4395,3470.3,3469.6,3.71235137]
[1735849904564,0.28841,3470.4,3470.2,2.55830137]
[1735849904748,40.8,3470.3,3470.2,2.55830137]
[1735849905258,40.8,3470.3,3470.2,2.26987137]
[1735849905557,40.8,3470.3,3469.7,0.4355]
[1735849905558,0.28846,3469.8,3469.7,0.4355]
[1735849905752,0.28848,3469.7,3469.4,0.72999]
[1735849905952,0.28848,3469.6,3469.4,0.72999]
[1735849906154,40.8,3469.5,3469.4,0.72999]
[1735849906666,40.8,3469.5,3469.4,2.99986137]
[1735849906958,40.8,3469.5,3469.4,4.15286137]
[1735849909368,3.2078,3470.3,3470.0,0.28844]
[1735849909369,0.28843,3470.2,3470.0,0.28844]
[1735849909561,3.2078,3470.3,3469.8,2.26987137]
[1735849909857,40.8,3470.2,3469.9,0.4319]
[1735849910058,41.08843,3470.2,3470.0,0.28844]
[1735849910455,0.28845,3470.0,3469.8,2.55833137]
[1735849910759,40.8,3470.2,3469.8,0.28846]
[1735849910760,0.28845,3469.9,3469.8,0.28846]
[1735849910957,0.28845,3469.9,3469.7,0.4319]
[1735849911158,0.28845,3469.9,3469.7,0.72037]
[1735849911359,0.28845,3470.0,3469.8,0.28846]
[1735849911562,0.4234,3470.1,3469.7,2.70177137]
[1735849911862,0.71184,3470.1,3469.9,0.28845]
[1735849912053,0.4234,3470.1,3469.7,0.4319]
[1735849912259,0.28845,3470.0,3469.8,0.28846]
[1735849912454,40.8,3469.9,3469.8,0.28846]
[1735849913059,41.08845,3469.9,3469.8,0.28846]
[1735849913962,40.8,3469.9,3469.7,0.72037]
[1735849914162,0.28846,3469.8,3469.7,0.72037]
[1735849914358,40.8,3469.9,3469.7,0.4319]
[1735849914555,41.08846,3469.9,3469.8,0.28846]
[1735849914756,0.4234,3470.1,3469.7,0.28847]
[1735849914958,0.28846,3469.9,3469.7,0.28847]
[1735849915761,0.28846,3469.9,3469.8,0.28846]
[1735849915960,0.28846,3469.9,3469.7,0.28847]
[1735849916155,0.4234,3470.1,3469.6,6.64667137]
[1735849916357,0.28841,3470.5,3470.3,0.28842]
[1735849916553,0.72091,3471.1,3470.4,3.2078]
[1735849916554,0.8959,3470.9,3470.4,3.2078]
[1735849916757,0.28839,3470.7,3470.6,0.28839]
[1735849916963,0.4578,3470.9,3470.4,3.6728]
[1735849916964,0.28838,3470.8,3470.4,3.6728]
[1735849917163,0.4578,3470.9,3470.6,0.28839]
[1735849917461,0.4578,3470.9,3470.8,0.28838]
[1735849917675,0.28838,3470.8,3470.6,2.55826137]
[1735849917868,41.08838,3470.8,3470.6,2.55826137]
[1735849918164,40.8,3470.8,3470.7,0.28839]
[1735849918665,41.08838,3470.8,3470.6,2.55826137]
[1735849920162,0.28839,3470.7,3470.6,2.55826137]
[1735849920362,40.8,3470.8,3470.6,2.26987137]
[1735849920567,40.8,3470.8,3470.7,0.28839]
[1735849920763,40.8,3470.8,3470.7,1.19099]
[1735849921166,3.2078,3471.1,3471.0,0.28836]
[1735849921362,3.2078,3471.1,3470.7,0.9026]
[1735849921363,3.2078,3471.9,3470.9,2.26987137]
[1735849921560,0.28834,3471.4,3471.2,2.55821137]
[1735849921762,0.4287,3471.6,3471.3,0.28834]
[1735849921763,0.71701,3471.6,3471.3,0.28834]
[1735849921963,0.4287,3471.6,3471.5,2.55819137]
[1735849922164,41.0883,3471.8,3471.6,0.28831]
[1735849922366,40.8,3471.8,3471.5,2.26987137]
[1735849922564,0.28831,3471.6,3471.5,2.26987137]
[1735849922865,40.8,3471.8,3471.3,0.4457]
[1735849923169,0.28833,3471.4,3471.3,0.4457]
[1735849923466,0.4654,3471.7,3471.3,0.73404]
[1735849923467,0.28833,3471.5,3471.3,0.73404]
[1735849923661,0.28833,3471.5,3471.3,0.4457]
[1735849923863,0.4654,3471.7,3471.2,1.169]
[1735849924372,0.28834,3471.3,3471.2,1.169]
[1735849924563,0.4654,3471.7,3471.2,1.169]
[1735849924564,0.28833,3471.4,3471.2,1.169]
[1735849924764,0.28831,3471.6,3471.2,1.169]
[1735849924963,40.8,3471.3,3471.2,1.169]
[1735849925263,41.08834,3471.3,3471.2,1.169]
[1735849925463,40.8,3471.3,3471.2,1.45735]
[1735849925860,40.8,3471.3,3471.2,3.43887137]
[1735849926066,40.8,3471.3,3471.2,3.72722137]
[1735849926672,40.8,3471.3,3471.2,1.45735]
[1735849927169,40.8,3471.3,3471.2,3.72722137]
[1735849928273,40.8,3471.3,3471.2,6.93502137]
[1735849929270,40.8,3471.3,3471.0,0.9129]
[1735849929470,40.8,3471.3,3470.7,4.3758]
[1735849929777,0.28838,3470.9,3470.7,3.2078]
[1735849930074,0.4481,3471.2,3471.0,0.28836]
[1735849930269,0.4481,3471.2,3470.8,2.26987137]
[1735849930270,0.73645,3471.2,3470.9,0.28837]
[1735849930467,0.73645,3471.2,3470.8,2.26987137]
[1735849930468,0.28837,3471.0,3470.8,2.26987137]
[1735849930667,0.28838,3470.8,3470.7,7.72813434]
[1735849930868,0.28838,3470.8,3470.7,4.52033434]
[1735849931171,2.55825137,3470.8,3470.7,2.10103434]
[1735849931371,0.28844,3470.1,3470.0,6.78324869]
[1735849931771,41.08844,3470.1,3470.0,6.78324869]
[1735849932478,44.29624,3470.1,3470.0,6.78324869]
[1735849932883,44.29624,3470.1,3469.4,0.83536889]
[1735849932884,0.28849,3469.5,3469.4,0.83536889]
[1735849933173,3.2078,3469.7,3469.2,6.78324869]
[1735849933375,0.2885,3469.3,3469.2,6.78324869]
[1735849934078,3.2078,3469.7,3469.2,6.78324869]
[1735849934378,3.2078,3469.7,3469.0,1.6065]
[1735849934572,0.28851,3469.3,3469.1,0.28852]
[1735849934874,0.28847,3469.8,3469.2,2.26987137]
[1735849935075,44.0078,3470.1,3469.6,3.2078]
[1735849935275,3.2078,3470.1,3469.9,2.55832137]
[1735849935481,3.2078,3470.1,3470.0,0.28845]
[1735849935876,3.2078,3470.1,3469.9,2.55832137]
[1735849936081,3.2078,3470.1,3469.7,2.32797]
[1735849936272,0.28845,3470.0,3469.7,2.32797]
[1735849936679,0.28846,3469.8,3469.7,0.8705]
[1735849936877,2.26987137,3470.3,3469.7,0.44]
[1735849937084,2.26987137,3470.3,3469.7,0.72847]
[1735849937085,0.28846,3469.9,3469.7,0.72847]
[1735849937284,0.721,3470.7,3469.7,0.44]
[1735849937483,0.721,3470.7,3469.9,0.28845]
[1735849937484,40.8,3470.6,3469.9,0.28845]
[1735849937784,0.28846,3469.9,3469.7,0.72847]
[1735849937982,0.28846,3469.8,3469.7,0.44]
[1735849938182,0.72104,3470.4,3469.7,0.44]
[1735849938480,41.08846,3469.8,3469.7,0.44]
[1735849938777,41.08846,3469.8,3469.5,6.78324869]
[1735849938778,40.8,3469.8,3469.5,6.78324869]
[1735849938988,0.28848,3469.6,3469.5,6.78324869]
[1735849939777,5.91187137,3469.7,3469.1,0.4338]
[1735849940082,0.28851,3469.2,3469.1,0.4338]
[1735849940283,40.8,3469.6,3468.7,6.78324869]
[1735849940486,0.28855,3468.8,3468.7,8.40344869]
[1735849940883,0.28855,3468.8,3468.7,7.23444869]
[1735849941084,41.08855,3468.8,3468.7,7.23444869]
[1735849941492,41.08855,3468.8,3468.3,11.2811711]
[1735849941493,0.28857,3468.5,3468.4,6.78324869]
[1735849942590,0.28861,3468.1,3467.9,0.4512]
[1735849942782,0.28861,3468.1,3467.9,0.73982]
[1735849942978,40.8,3468.0,3467.9,0.73982]
[1735849943478,41.08861,3468.0,3467.9,0.4512]
[1735849943679,40.8,3468.0,3467.9,0.4512]
[1735849944081,41.08861,3468.0,3467.9,0.4512]
[1735849947992,44.0078,3468.0,3467.4,1.173]
[1735849948199,0.28865,3467.5,3467.4,0.4608]
[1735849949691,44.0078,3468.0,3467.4,0.4608]
[1735849949896,0.28865,3467.6,3467.4,0.4608]
[1735849950395,40.8,3468.0,3467.5,5.47767137]
[1735849950697,0.28861,3468.1,3467.9,2.26987137]
[1735849951087,3.2078,3468.4,3467.7,1.173]
[1735849951393,0.28862,3468.0,3467.7,1.46164]
[1735849951696,0.28862,3468.0,3467.9,2.26987137]
[1735849951990,40.8,3468.3,3467.7,1.173]
[1735849951991,0.28863,3467.8,3467.7,1.173]
[1735849952196,0.28863,3467.9,3467.7,1.173]
[1735849952591,0.28863,3467.8,3467.7,1.173]
[1735849953093,41.52148,3468.3,3467.7,1.173]
[1735849953094,40.8,3468.3,3467.7,1.173]
[1735849953495,0.28863,3467.8,3467.7,1.173]
[1735849954401,41.52148,3468.3,3467.5,3.2078]
[1735849954402,0.28865,3467.6,3467.5,3.2078]
[1735849954890,41.08865,3467.6,3467.5,3.2078]
[1735849955403,0.28865,3467.5,3467.4,0.4608]
[1735849956786,41.08865,3467.6,3467.5,0.28865]
[1735849957299,40.8,3467.6,3467.5,0.28865]
[1735849958498,40.8,3467.6,3467.5,3.49645]
[1735849959696,40.8,3467.6,3467.5,3.2078]
[1735849959890,41.08865,3467.6,3467.5,3.2078]
[1735849960090,40.8,3467.6,3467.4,0.4608]
[1735849960292,40.8,3467.6,3467.5,0.28865]
[1735849960492,41.08865,3467.6,3467.4,0.74946]
[1735849960893,40.8,3467.6,3467.4,0.4608]
[1735849961097,0.28866,3467.5,3467.4,0.4608]
[1735849962296,40.8,3467.6,3467.4,0.4608]
[1735849962503,41.08865,3467.6,3467.4,0.74946]
[1735849962998,41.08865,3467.6,3467.4,3.6686]
[1735849963298,40.8,3467.6,3467.5,0.28866]
[1735849964403,0.28866,3467.5,3467.4,0.4608]
[1735849964589,41.08865,3467.6,3467.4,0.74946]
[1735849964793,41.08865,3467.6,3467.5,0.28866]
[1735849965396,41.08865,3467.6,3467.4,0.4608]
[1735849965595,40.8,3467.6,3467.5,0.28866]
[1735849965996,40.8,3467.6,3467.4,0.74946]
[1735849966201,41.08865,3467.6,3467.4,0.74946]
[1735849966995,41.08865,3467.6,3467.5,0.28866]
[1735849967298,41.08865,3467.6,3467.4,0.4608]
[1735849967498,0.28866,3467.5,3467.4,0.4608]
[1735849967702,0.28866,3467.5,3467.4,0.74946]
[1735849967902,40.8,3467.6,3467.5,0.28866]
[1735849968206,0.28866,3467.5,3467.4,0.4608]
[1735849968504,0.28866,3467.5,3467.4,0.74946]
[1735849968898,0.28866,3467.5,3467.4,0.4608]
[1735849970199,0.72165,3467.5,3466.6,3.2078]
[1735849970407,0.72165,3467.5,3466.1,3.4395186]
[1735849970408,0.28871,3466.8,3466.7,0.4405]
[1735849971001,41.08871,3466.8,3466.7,0.4405]
[1735849971404,41.08871,3466.8,3466.2,4.8096]
[1735849971405,0.28875,3466.4,3466.2,4.8096]
[1735849971706,0.28875,3466.4,3466.3,0.4405]
[1735849972298,40.8,3466.8,3466.3,0.4405]
[1735849972497,0.28873,3466.7,3466.5,0.28874]
[1735849972899,40.8,3466.8,3466.4,0.75614]
[1735849972900,0.28873,3466.6,3466.4,0.75614]
[1735849973103,40.8,3466.8,3466.5,0.28873]
[1735849973104,41.08872,3466.8,3466.5,0.28873]
[1735849973310,41.08872,3466.8,3466.6,0.28873]
[1735849974105,40.8,3466.8,3466.4,0.4674]
[1735849974306,0.28873,3466.7,3466.5,0.28874]
[1735849976302,40.8,3466.8,3466.4,0.4674]
[1735849976704,41.08872,3466.8,3466.5,0.28874]
[1735849976906,41.08872,3466.8,3466.6,0.28873]
[1735849977401,40.8,3466.8,3466.4,0.4674]
[1735849977803,0.28873,3466.7,3466.5,0.28873]
[1735849978410,40.8,3466.8,3466.4,0.4674]
[1735849978609,0.28874,3466.6,3466.4,0.75614]
[1735849979015,0.28873,3466.7,3466.5,0.28874]
[1735849979906,0.28873,3466.6,3466.4,0.75614]
[1735849980111,40.8,3466.8,3466.4,0.4674]
[1735849980501,0.28874,3466.6,3466.4,0.75614]
[1735849980706,0.28874,3466.6,3466.5,0.28874]
[1735849980906,0.28874,3466.6,3466.4,0.75614]
[1735849982111,40.8,3466.8,3466.4,0.4674]
[1735849982302,0.28872,3466.7,3466.4,0.4674]
[1735849982811,0.28874,3466.6,3466.4,0.75614]
[1735849983008,0.28874,3466.5,3466.4,0.75614]
[1735849983511,40.8,3466.8,3466.4,0.75614]
[1735849983812,40.8,3466.8,3466.4,0.4674]
[1735849984013,0.28875,3466.4,3466.3,3.6483]
[1735849984320,0.28874,3466.5,3466.4,0.28875]
[1735849984508,0.28874,3466.5,3466.3,5.92309904]
[1735849984714,0.28872,3466.7,3466.3,6.21184904]
[1735849985014,0.28875,3466.4,3466.3,5.92309904]
[1735849985819,0.28875,3466.4,3466.3,3.6483]
[1735849986006,0.28875,3466.4,3466.3,0.4405]
[1735849986325,0.28877,3466.1,3466.0,6.7411044]
[1735849986908,41.08877,3466.1,3466.0,6.7411044]
[1735849988006,40.8,3466.1,3465.9,0.4296]
[1735849988221,0.28878,3466.0,3465.9,0.4296]
[1735849990213,40.8,3466.1,3465.6,0.4288]
[1735849990421,0.28881,3465.7,3465.6,0.74681]
[1735849990719,0.2888,3465.8,3465.7,0.2888]
[1735849991413,40.8,3466.1,3466.0,0.28878]
[1735849991617,3.6375,3466.3,3465.9,2.27479904]
[1735849991618,3.2078,3466.3,3465.9,2.27479904]
[1735849991818,3.49656,3466.3,3466.2,0.28876]
[1735849992013,3.49656,3466.3,3466.0,0.8827]
[1735849992014,40.8,3466.3,3466.0,0.8827]
[1735849992211,6.58664689,3467.1,3466.2,2.27479904]
[1735849992411,6.58664689,3467.1,3466.0,0.8827]
[1735849992412,3.37884689,3467.1,3466.8,2.56350904]
[1735849992621,2.54124459,3467.3,3466.8,2.27479904]
[1735849992817,40.8,3467.2,3467.1,0.28869]
[1735849993125,41.08868,3467.2,3467.1,0.28869]
[1735849993518,40.8,3467.2,3467.1,0.28869]
[1735849994425,41.08868,3467.2,3467.1,0.28869]
[1735849995118,40.8,3467.2,3467.1,0.28869]
[1735849995321,41.08868,3467.2,3467.1,0.28869]
[1735849996520,41.08868,3467.2,3467.0,3.635]
[1735849996521,0.28869,3467.1,3467.0,3.635]
[1735849996921,0.28869,3467.1,3467.0,0.4272]
[1735849997823,0.28873,3466.8,3466.7,0.28872]
[1735849998027,0.28873,3466.6,3466.5,8.3529044]
[1735849998619,41.08873,3466.6,3466.5,8.3529044]
[1735849999821,41.08873,3466.6,3466.5,1.6118]
[1735850002627,41.08873,3466.6,3466.5,0.4408]
[1735850007531,41.08873,3466.6,3466.3,0.4489]
[1735850007532,0.28876,3466.2,3466.1,3.2078]
[1735850007927,0.28876,3466.2,3466.1,9.9489044]
[1735850008123,0.28876,3466.2,3466.1,6.7411044]
[1735850008533,41.08876,3466.2,3466.1,6.7411044]
[1735850009730,0.28881,3465.6,3465.5,0.4621]
[1735850009937,0.28881,3465.6,3465.5,0.75092]
[1735850010434,41.08881,3465.6,3465.5,0.75092]
[1735850011037,41.08881,3465.6,3465.5,0.4621]
[1735850011439,41.08881,3465.6,3465.5,0.75092]
[1735850012529,41.08881,3465.6,3465.5,0.4621]
[1735850013731,41.08881,3465.6,3465.5,5.06032665]
[1735850014328,44.29661,3465.6,3465.5,5.06032665]
[1735850014540,44.29661,3465.6,3465.5,4.59822665]
[1735850014834,44.29661,3465.6,3465.4,6.7411044]
[1735850014835,0.28882,3465.5,3465.4,6.7411044]
[1735850015032,0.28884,3465.3,3465.2,6.7411044]
[1735850015234,2.56363904,3465.3,3465.2,6.7411044]
[1735850015635,43.36363904,3465.3,3465.2,6.7411044]
[1735850016030,48.36363904,3465.3,3465.2,6.7411044]
[1735850016237,48.36363904,3465.3,3465.2,5.7024044]
[1735850016633,0.28889,3464.7,3464.6,5.7024044]
[1735850017730,41.08889,3464.7,3464.6,5.9913044]
[1735850018241,41.08889,3464.7,3464.6,5.7024044]
[1735850018441,0.2889,3464.6,3464.5,0.747]
[1735850018841,40.8,3464.7,3464.6,0.2889]
[1735850019142,0.2889,3464.6,3464.5,0.747]
[1735850019742,41.08889,3464.7,3464.6,0.2889]
[1735850020535,40.8,3464.7,3464.6,0.2889]
[1735850020734,3.2078,3465.3,3464.5,5.94069904]
[1735850020934,3.2078,3465.3,3464.8,2.27479904]
[1735850021140,0.28886,3465.0,3464.9,0.4589]
[1735850021336,41.08886,3465.0,3464.9,0.4589]
[1735850021943,41.08886,3465.0,3464.9,0.74777]
[1735850022340,41.08886,3465.0,3464.9,0.4589]
[1735850023536,41.08886,3465.0,3464.9,0.74777]
[1735850023734,40.8,3465.0,3464.9,0.74777]
[1735850023940,3.49664,3465.3,3465.2,0.28885]
[1735850024145,3.49664,3465.3,3465.2,2.56364904]
[1735850024344,44.29664,3465.3,3465.2,2.56364904]
[1735850024540,44.29664,3465.3,3465.2,2.27479904]
[1735850024749,41.08884,3465.3,3465.1,0.28885]
[1735850024941,40.8,3465.3,3464.9,6.40189904]
[1735850025338,40.8,3465.3,3465.1,0.28885]
[1735850025339,41.08885,3465.3,3465.1,0.28885]
[1735850025744,41.08885,3465.3,3465.2,0.4359]
[1735850026344,41.08885,3465.3,3465.2,0.72475]
[1735850026542,41.08885,3465.3,3465.2,0.4359]
[1735850028041,41.08885,3465.3,3465.2,0.72475]
[1735850028642,41.08885,3465.3,3465.2,0.4359]
[1735850029356,41.08885,3465.3,3465.2,0.72475]
[1735850029649,40.8,3465.3,3465.2,2.99954904]
[1735850032151,40.8,3465.3,3465.2,4.15654904]
[1735850032353,0.28878,3466.0,3465.4,0.72208]
[1735850032554,0.28878,3466.1,3466.0,0.28878]
[1735850032861,40.8,3466.1,3466.0,0.28878]
[1735850034758,40.8,3466.1,3466.0,4.85712838]
[1735850036064,41.08877,3466.1,3466.0,4.56834838]
[1735850036662,40.8,3466.1,3466.0,4.85712838]
[1735850037165,40.8,3466.1,3466.0,0.28878]
[1735850040660,40.8,3466.1,3465.9,0.4662]
[1735850040867,0.2888,3465.8,3465.7,8.9881392]
[1735850041260,41.0888,3465.8,3465.7,8.9881392]
[1735850041462,44.2966,3465.8,3465.7,8.9881392]
[1735850042762,0.28886,3465.0,3464.9,3.49667]
[1735850042964,2.27479904,3465.6,3464.9,3.2078]
[1735850043158,0.72202,3465.7,3464.9,3.2078]
[1735850043159,0.28881,3465.7,3465.2,0.28884]
[1735850043359,3.92981,3465.8,3465.4,0.28883]
[1735850043360,0.28883,3465.5,3465.4,0.28883]
[1735850043566,0.28883,3465.5,3465.0,2.27479904]
[1735850043873,0.28884,3465.3,3465.2,0.28885]
[1735850044069,5.48259904,3465.8,3464.9,3.2078]
[1735850044267,5.48259904,3465.8,3465.0,0.28886]
[1735850044268,0.28886,3465.1,3465.0,0.28886]
[1735850044468,40.8,3465.1,3465.0,0.28886]
[1735850044965,40.8,3465.1,3464.8,0.4226]
[1735850045172,40.8,3465.1,3464.5,12.42195325]
[1735850045173,40.8,3465.1,3464.5,12.4848392]
[1735850045475,40.8,3465.1,3464.7,0.28889]
[1735850045662,40.8,3465.1,3464.9,0.28887]
[1735850045866,0.28886,3465.0,3464.8,0.28888]
[1735850047264,0.28886,3465.0,3464.7,2.56368904]
[1735850047474,0.28888,3464.9,3464.7,0.28889]
[1735850047775,0.28887,3465.0,3464.8,0.28888]
[1735850048069,0.28887,3464.9,3464.5,4.8282]
[1735850048266,40.8,3465.1,3464.7,0.28889]
[1735850048570,0.28887,3465.0,3464.8,0.28888]
[1735850048773,40.8,3465.1,3464.6,0.2889]
[1735850048774,0.28888,3464.9,3464.6,0.2889]
[1735850049074,40.8,3465.1,3464.5,4.8282]
[1735850049269,0.28886,3465.0,3464.7,0.28888]
[1735850049469,0.28886,3465.0,3464.8,0.28888]
[1735850049669,40.8,3465.1,3464.8,0.28888]
[1735850049870,0.28886,3465.0,3464.8,0.28888]
[1735850050369,0.28886,3465.0,3464.7,2.56367904]
[1735850050570,0.28886,3465.0,3464.7,3.01747904]
[1735850050773,0.28886,3465.0,3464.8,0.28888]
[1735850052877,0.28886,3465.0,3464.7,7.54378654]
[1735850053076,0.28886,3465.0,3464.7,7.25490654]
[1735850053478,0.28886,3465.0,3464.8,4.8151875]
[1735850053776,0.28887,3464.9,3464.8,4.5263075]
[1735850053976,0.28887,3465.0,3464.8,4.5263075]
[1735850054873,40.8,3465.1,3464.8,4.5263075]
[1735850055074,0.28887,3464.9,3464.8,4.5263075]
[1735850055274,0.28887,3465.0,3464.8,4.8151875]
[1735850055777,40.8,3465.1,3464.8,4.5263075]
[1735850055974,0.28887,3464.9,3464.8,4.5263075]
[1735850056573,40.8,3465.1,3464.8,4.5263075]
[1735850056574,0.28887,3465.0,3464.8,4.5263075]
[1735850056880,0.28887,3464.9,3464.8,4.8151875]
[1735850057178,0.28887,3464.9,3464.8,4.5263075]
[1735850057881,0.28887,3464.9,3464.8,4.8151875]
[1735850058581,0.28887,3464.9,3464.8,4.5263075]
[1735850060772,2.56366904,3464.9,3464.8,4.5263075]
[1735850061885,43.36366904,3464.9,3464.8,4.5263075]
[1735850064286,41.08892,3464.3,3464.2,0.4257]
[1735850064481,40.8,3464.3,3464.2,0.71463]
[1735850065389,3.2078,3465.0,3464.2,0.71463]
[1735850065688,0.28889,3464.7,3464.6,0.28889]
[1735850065890,0.28887,3464.9,3464.8,0.28888]
[1735850066489,40.8,3464.9,3464.8,0.28888]
[1735850066681,40.8,3464.9,3464.8,0.74888]
[1735850069493,40.8,3464.9,3464.8,5.3239173]
[1735850069687,0.72198,3466.0,3464.8,5.0350373]
[1735850069887,0.28884,3465.4,3465.2,3.49664]
[1735850070188,0.28884,3465.4,3465.3,0.456]
[1735850070489,0.722,3465.9,3465.3,3.6638]
[1735850070789,0.28883,3465.5,3465.4,0.4671]